[Event "AUT-ch Internet"]
[Site "Wilhelm-Steinitz-Stadion"]
[Date "2020.10.04"]
[Round "4"]
[White "Sackbauer"]
[Black "Tannika"]
[Result "1-0"]
[WhiteElo "2498"]
[BlackElo "2122"]
[PlyCount "71"]
[EventDate "2020.10.04"]
[EventType "blitz"]
[TimeControl "180+2"]

1. e4 {[%emt 0:00:02]} e5 {[%emt 0:00:02]} 2. Nf3 {[%emt 0:00:02]} Nc6 {[%emt 0:00:01]} 3. Bc4 {[%emt 0:00:00]} Bc5 {[%emt 0:00:02]} 4. d3 {[%emt 0:00:04]} Nf6 {[%emt 0:00:05]} 5. O-O {[%emt 0:00:04]} a6 {[%emt 0:00:02]} 6. c3 {[%emt 0:00:06]} d6 {[%emt 0:00:12]} 7. a4 {[%emt 0:00:03]} Ba7 {[%emt 0:00:10]} 8. Re1 {[%emt 0:00:03]} Ne7 {[%emt 0:00:09]} 9. d4 {[%emt 0:00:08]} Ng6 {[%emt 0:00:09]} 10. Bd3 {[%emt 0:00:13]} O-O {[%emt 0:00:06]} 11. Be3 {[%emt 0:00:05]} Bg4 {[%emt 0:00:07]} 12. h3 {[%emt 0:00:03]} Be6 {[%emt 0:00:12]} 13. Nbd2 {[%emt 0:00:18] Sackbauer reconnected.} Re8 {[%emt 0:00:24]} 14. Nf1 {[%emt 0:00:03]} c6 {[%emt 0:00:35]} 15. Ng3 {[%emt 0:00:02]} h6 {[%emt 0:00:25]} 16. Qd2 {[%emt 0:00:07]} Kh7 {[%emt 0:00:18]} 17. a5 {[%emt 0:00:11]} Qd7 {[%emt 0:00:09]} 18. b4 {[%emt 0:00:10]} Bxh3 {[%emt 0:00:03]} 19. gxh3 {[%emt 0:00:04]} Qxh3 {[%emt 0:00:00]} 20. Bf1 {[%emt 0:00:21]} Qg4 {[%emt 0:00:03]} 21. Nh2 {[%emt 0:00:07]} Qe6 {[%emt 0:00:04]} 22. Rad1 {[%emt 0:00:22]} exd4 {[%emt 0:00:03] ' Sackbauer reconnected.} 23. Bxd4 {[%emt 0:00:03] White restart ok. Black restart ok. Zeit ' White restart ok. Black restart ok.} c5 {[%emt 0:00:03]} 24. Bxf6 {[%emt 0:00:09]} Qxf6 {[%emt 0:00:02]} 25. Qxd6 {[%emt 0:00:15]} Qxc3 {[%emt 0:00:04]} 26. Qd3 {[%emt 0:00:10]} Qxb4 {[%emt 0:00:04]} 27. Qc4 {[%emt 0:00:07]} Qxa5 {[%emt 0:00:04]} 28. Nf3 {[%emt 0:00:10]} f6 {[%emt 0:00:07]} 29. Bh3 {[%emt 0:00:07]} Qa3 {[%emt 0:00:04]} 30. Re3 {[%emt 0:00:05]} Qb2 {[%emt 0:00:03]} 31. Bf5 {[%emt 0:00:03]} b5 {[%emt 0:00:02]} 32. Qf7 {[%emt 0:00:02]} c4 {[%emt 0:00:02]} 33. Qxg6+ {[%emt 0:00:02]} Kg8 {[%emt 0:00:01]} 34. Rd7 {[%emt 0:00:04]} Qb1+ {[%emt 0:00:06]} 35. Kg2 {[%emt 0:00:01]} Bxe3 {[%emt 0:00:04]} 36. Qxg7# {[%emt 0:00:01] (Lag: Av=0.88s, max=1.3s)} 1-0